bitfinex/quotes_BTCUSD_20250802
["timestamp","ask_amount","ask_price","bid_price","bid_amount"]
[1754169336720,0.2589947,112870.0,112860.0,0.001]
[1754169336925,0.2589947,112870.0,112860.0,0.00407]
[1754169337865,0.2589947,112870.0,112860.0,0.001]
[1754169339292,0.2595647,112870.0,112860.0,0.001]
[1754169339422,0.2329187,112870.0,112860.0,0.001]
[1754169341888,0.2323487,112870.0,112860.0,0.001]
[1754169346336,0.22402851,112870.0,112860.0,0.001]
[1754169346545,0.23235085,112870.0,112860.0,0.001]
[1754169348611,4.8279286,112870.0,112860.0,0.001]
[1754169348856,5.20952311,112870.0,112860.0,0.001]
[1754169349069,5.12337103,112870.0,112860.0,0.001]
[1754169349280,5.17008424,112870.0,112860.0,0.001]
[1754169349494,5.19673724,112870.0,112860.0,0.001]
[1754169349700,5.17316175,112870.0,112860.0,0.001]
[1754169349908,5.2855748,112870.0,112860.0,0.001]
[1754169350125,5.19673724,112870.0,112860.0,0.001]
[1754169350775,5.63233245,112870.0,112860.0,0.001]
[1754169352077,0.34,112840.0,112830.0,0.03781344]
[1754169352277,0.50468558,112840.0,112830.0,0.03986344]
[1754169352905,0.51855973,112840.0,112830.0,0.03986344]
[1754169353294,0.51855973,112840.0,112830.0,0.04286344]
[1754169353700,0.51855973,112840.0,112830.0,0.03986344]
[1754169353936,0.51855973,112840.0,112830.0,0.04186344]
[1754169355403,0.51855973,112840.0,112830.0,0.04386344]
[1754169360897,0.17847973,112840.0,112830.0,0.04386344]
[1754169361133,0.02219718,112840.0,112830.0,0.13249628]
[1754169361380,0.01387415,112840.0,112830.0,0.14578591]
[1754169368869,0.01387415,112840.0,112830.0,0.05715307]
[1754169369148,0.00781415,112840.0,112830.0,0.04386344]
[1754169370646,0.00781415,112840.0,112830.0,0.01780344]
[1754169372312,0.01612289,112840.0,112830.0,0.01780344]
[1754169372788,0.01612289,112840.0,112830.0,0.02091344]
[1754169373038,0.04715289,112840.0,112830.0,0.02091344]
[1754169373527,0.04912289,112840.0,112830.0,0.004]
[1754169373984,0.04912289,112840.0,112830.0,0.00604]
[1754169374209,0.04912289,112840.0,112830.0,0.00915]
[1754169375090,0.04912289,112840.0,112830.0,0.04209]
[1754169375317,0.04715509,112840.0,112830.0,0.04209]
[1754169380278,0.04715955,112840.0,112830.0,0.04209]
[1754169381684,0.01612955,112840.0,112830.0,0.04209]
[1754169381970,0.01612938,112840.0,112830.0,0.04209]
[1754169382567,0.00781415,112840.0,112830.0,0.04209]
[1754169383880,0.00781415,112840.0,112830.0,0.13072284]
[1754169384099,0.00781415,112840.0,112830.0,0.14405672]
[1754169387227,0.01613168,112840.0,112830.0,0.14405672]
[1754169389764,0.00781415,112840.0,112830.0,0.28345672]
[1754169391197,0.00781415,112840.0,112830.0,0.28145672]
[1754169391435,0.00781415,112840.0,112830.0,0.28245672]
[1754169391674,0.00781415,112840.0,112830.0,0.28645672]
[1754169393218,0.04088415,112840.0,112830.0,0.25351672]
[1754169393694,0.03881415,112840.0,112830.0,0.28617672]
[1754169394772,0.00781415,112840.0,112830.0,0.28617672]
[1754169396970,0.03881415,112840.0,112830.0,0.28617672]
[1754169397177,0.04088415,112840.0,112830.0,0.25347672]
[1754169397391,0.04088415,112840.0,112830.0,0.11411672]
[1754169397635,0.57499521,112870.0,112830.0,0.25347672]
[1754169397852,0.01387265,112850.0,112830.0,0.14677672]
[1754169398066,0.02218897,112850.0,112830.0,0.28613672]
[1754169398277,0.00831632,112850.0,112830.0,0.28613672]
[1754169398485,0.02218891,112850.0,112830.0,0.28613672]
[1754169398698,0.02218891,112850.0,112830.0,0.28313672]
[1754169398905,0.02218891,112850.0,112830.0,0.27913672]
[1754169399326,0.00831632,112850.0,112830.0,0.28113672]
[1754169399580,0.03931632,112850.0,112830.0,0.28113672]
[1754169399793,0.03931632,112850.0,112830.0,0.28109672]
[1754169400436,0.03931632,112850.0,112830.0,0.28209672]
[1754169400858,0.05318893,112850.0,112830.0,0.28209672]
[1754169401976,0.02218893,112850.0,112830.0,0.28209672]
[1754169402182,0.031,112840.0,112830.0,0.14277672]
[1754169402390,0.03931674,112840.0,112830.0,0.00815]
[1754169402538,0.03931674,112840.0,112830.0,0.00611]
[1754169402762,0.03931699,112840.0,112830.0,0.003]
[1754169403833,0.03931699,112840.0,112830.0,0.00615]
[1754169404497,0.03931699,112840.0,112830.0,0.00415]
[1754169404970,0.03931699,112840.0,112830.0,0.00715]
[1754169406170,0.03931699,112840.0,112830.0,0.00615]
[1754169406372,0.05595214,112840.0,112830.0,0.00615]
[1754169406581,0.05595214,112840.0,112830.0,0.00815]
[1754169406760,0.05595214,112840.0,112830.0,0.005]
[1754169407425,0.05595214,112840.0,112830.0,0.003]
[1754169407626,0.05595214,112840.0,112820.0,0.17549]
[1754169407876,0.05595214,112840.0,112830.0,0.001]
[1754169408038,0.05595214,112840.0,112830.0,0.003]
[1754169408625,0.39595214,112840.0,112830.0,0.003]
[1754169409071,0.39595214,112840.0,112830.0,0.002]
[1754169410444,0.39595214,112840.0,112830.0,0.003]
[1754169412364,0.39594796,112840.0,112830.0,0.003]
[1754169412813,0.39594796,112840.0,112830.0,0.002]
[1754169413024,0.39594796,112840.0,112830.0,0.003]
[1754169413643,0.39594796,112840.0,112830.0,0.001]
[1754169414826,0.42260296,112840.0,112830.0,0.001]
[1754169415241,0.42259828,112840.0,112830.0,0.001]
[1754169415628,0.42259828,112840.0,112830.0,0.00395]
[1754169415839,0.39159828,112840.0,112830.0,0.03958]
[1754169418552,0.43878282,112840.0,112830.0,0.03958]
[1754169419129,0.43878282,112840.0,112830.0,0.00607]
[1754169419341,0.43878282,112840.0,112830.0,0.00395]
[1754169419555,0.43878282,112840.0,112830.0,0.03958]
[1754169421241,0.43878282,112840.0,112830.0,0.00607]
[1754169421465,0.43878282,112840.0,112830.0,0.00395]
[1754169422305,0.43878282,112840.0,112830.0,0.001]
[1754169423002,0.43878282,112840.0,112830.0,0.00395]
[1754169424995,0.43878282,112840.0,112830.0,0.001]
[1754169425598,0.43878282,112840.0,112830.0,0.00395]
[1754169425790,0.43878115,112840.0,112830.0,0.00395]
[1754169428700,0.43876447,112840.0,112830.0,0.00395]
[1754169431362,0.43876447,112840.0,112830.0,0.00607]
[1754169431576,0.41383954,112840.0,112830.0,0.03958]
[1754169431833,0.43878137,112840.0,112830.0,0.03958]
[1754169432044,0.09878137,112840.0,112830.0,0.03958]
[1754169432261,0.20459137,112840.0,112830.0,0.03958]
[1754169433561,0.23790137,112840.0,112830.0,0.03958]
[1754169434606,0.23791702,112840.0,112830.0,0.03958]
[1754169435929,0.23791828,112840.0,112830.0,0.03958]
[1754169437602,0.09879828,112840.0,112830.0,0.03958]
[1754169437823,0.23787828,112840.0,112830.0,0.03958]
[1754169438047,0.03883328,112840.0,112830.0,0.03958]
[1754169438266,0.02495874,112840.0,112830.0,0.03954]
[1754169438490,0.36495874,112840.0,112830.0,0.03954]
[1754169439159,0.02495874,112840.0,112830.0,0.12817284]
[1754169439430,0.00832042,112840.0,112830.0,0.14126018]
[1754169440312,0.00831667,112840.0,112830.0,0.14126018]
[1754169440513,0.02218989,112840.0,112830.0,0.14126018]
[1754169442283,0.01387322,112840.0,112830.0,0.14126018]
[1754169444582,0.34,112850.0,112830.0,0.14126018]
[1754169444794,0.34831021,112850.0,112840.0,0.08863284]
[1754169445010,0.34831021,112850.0,112840.0,0.13758286]
[1754169445643,0.34931021,112850.0,112840.0,0.13758286]
[1754169446052,0.34831021,112850.0,112840.0,0.13758286]
[1754169446303,0.34931021,112850.0,112840.0,0.13758286]
[1754169447623,0.36318266,112850.0,112840.0,0.13758286]
[1754169448622,0.36218266,112850.0,112840.0,0.13758286]
[1754169449448,0.36218266,112850.0,112840.0,0.14058286]
[1754169451460,0.35387245,112850.0,112840.0,0.14058286]
[1754169452506,0.01387245,112850.0,112840.0,0.14058286]
[1754169453110,0.01387245,112850.0,112840.0,0.14279838]
[1754169453355,0.1716286,112860.0,112840.0,0.14279838]
[1754169453602,0.1716286,112860.0,112850.0,0.13892]
[1754169453853,0.1716286,112860.0,112850.0,0.29071868]
[1754169454086,0.34,112880.0,112850.0,0.29071868]
[1754169454322,0.34829406,112880.0,112860.0,0.12526284]
[1754169454607,0.34,112880.0,112870.0,0.03864]
[1754169455082,0.34,112880.0,112870.0,0.17756]
[1754169455523,0.34004781,112880.0,112870.0,0.17756]
[1754169456028,0.35391669,112880.0,112870.0,0.20417928]
[1754169456539,0.35391669,112880.0,112870.0,0.20517928]
[1754169456774,0.35391669,112880.0,112870.0,0.29381212]
[1754169457021,0.01391669,112880.0,112870.0,0.29381212]
[1754169457248,4.781e-05,112880.0,112870.0,0.29381212]
[1754169457510,4.781e-05,112880.0,112870.0,0.29581212]
[1754169459888,4.781e-05,112880.0,112870.0,0.33826114]
[1754169460101,4.781e-05,112880.0,112870.0,0.33626114]
[1754169460556,4.781e-05,112880.0,112870.0,0.33826114]
[1754169460780,4.781e-05,112880.0,112870.0,0.33726114]
[1754169461006,4.781e-05,112880.0,112870.0,0.33526114]
[1754169461261,4.781e-05,112880.0,112870.0,0.72689473]
[1754169461468,4.781e-05,112880.0,112870.0,0.72289473]
[1754169461682,4.781e-05,112880.0,112870.0,0.72889473]
[1754169461906,4.781e-05,112880.0,112870.0,0.72289473]
[1754169462305,4.781e-05,112880.0,112870.0,0.72989473]
[1754169462579,4.781e-05,112880.0,112870.0,0.72489473]
[1754169462792,4.781e-05,112880.0,112870.0,0.72889473]
[1754169464737,4.781e-05,112880.0,112870.0,0.42514498]
[1754169467526,4.781e-05,112880.0,112870.0,0.75552373]
[1754169468839,4.781e-05,112880.0,112870.0,0.42514498]
[1754169469176,4.781e-05,112880.0,112870.0,0.75552373]
[1754169469437,4.781e-05,112880.0,112870.0,0.26122498]
[1754169469670,4.781e-05,112880.0,112870.0,0.20897014]
[1754169469921,4.781e-05,112880.0,112870.0,0.33032112]
[1754169470199,4.781e-05,112880.0,112870.0,0.19152112]
[1754169470459,0.03273781,112880.0,112870.0,0.15110112]
[1754169470712,0.03273781,112880.0,112870.0,0.23064284]
[1754169470938,0.03273781,112880.0,112870.0,0.23664284]
[1754169471153,0.04098328,112880.0,112870.0,0.23064284]
[1754169471367,0.04098328,112880.0,112870.0,0.23464284]
[1754169471585,0.04098328,112880.0,112870.0,0.26806284]
[1754169471805,0.04098328,112880.0,112870.0,0.29954282]
[1754169472240,0.04098328,112880.0,112870.0,0.30354282]
[1754169472685,0.04098328,112880.0,112870.0,0.26411282]
[1754169472894,0.04098328,112880.0,112870.0,0.26711282]
[1754169473105,0.04098328,112880.0,112870.0,0.12831282]
[1754169473323,0.04098328,112880.0,112870.0,0.26711282]
[1754169473797,0.04098328,112880.0,112870.0,0.09563284]
[1754169474041,0.04098328,112880.0,112870.0,0.23443284]
[1754169475757,0.04098328,112880.0,112870.0,0.23143284]
[1754169476280,0.04098328,112880.0,112870.0,0.23343284]
[1754169476475,0.04098328,112880.0,112870.0,0.22943284]
[1754169476672,0.03863561,112880.0,112870.0,0.25269712]
[1754169476878,0.03863561,112880.0,112870.0,0.25569712]
[1754169477473,0.03863561,112880.0,112870.0,0.11689712]
[1754169477704,0.03863561,112880.0,112870.0,0.23239284]
[1754169478093,0.03863561,112880.0,112870.0,0.09363284]
[1754169478295,0.05516771,112880.0,112870.0,0.14376]
[1754169478913,0.08175203,112880.0,112870.0,0.14376]
[1754169479581,0.08175203,112880.0,112870.0,0.14076]
[1754169480077,0.08175203,112880.0,112870.0,0.13976]
[1754169480763,0.08177933,112880.0,112870.0,0.13876]
[1754169481463,0.08177933,112880.0,112870.0,0.13976]
[1754169482552,0.06524723,112880.0,112870.0,0.13976]
[1754169482768,0.08180507,112880.0,112870.0,0.153736]
[1754169482988,0.08180507,112880.0,112870.0,0.13976]
[1754169483201,0.08180507,112880.0,112870.0,0.13972]
[1754169485532,0.08181107,112880.0,112870.0,0.13972]
[1754169485949,0.05522675,112880.0,112870.0,0.13972]
[1754169486369,0.05522675,112880.0,112870.0,0.157019]
[1754169486581,0.05522675,112880.0,112870.0,0.14293]
[1754169487397,0.02483661,112880.0,112870.0,0.17509]
[1754169487860,0.05743661,112880.0,112870.0,0.17509]
[1754169488284,0.04915784,112880.0,112870.0,0.17509]
[1754169488492,0.05743369,112880.0,112870.0,0.17509]
[1754169488703,0.05743369,112880.0,112870.0,0.14503]
[1754169489999,0.05743369,112880.0,112870.0,0.14293]
[1754169490878,0.05743369,112880.0,112870.0,0.00421]
[1754169491095,0.05743369,112880.0,112870.0,0.001]
[1754169491318,0.04914824,112880.0,112870.0,0.001]
[1754169491536,0.05742236,112880.0,112870.0,0.001]
[1754169491718,0.39742236,112880.0,112870.0,0.001]
[1754169492929,0.48233949,112880.0,112870.0,0.001]
[1754169493155,0.52292554,112880.0,112870.0,0.001]
[1754169493612,0.52292554,112880.0,112840.0,0.17203]
[1754169493838,0.52292554,112880.0,112830.0,0.03327]
[1754169493839,0.34,112860.0,112830.0,0.03327]
[1754169494057,0.40066468,112860.0,112830.0,0.03327]
[1754169494253,0.0326,112850.0,112830.0,0.03327]
[1754169494511,0.05742642,112850.0,112830.0,0.03327]
[1754169494696,0.05742642,112850.0,112830.0,0.05763456]
[1754169495366,0.05742642,112850.0,112830.0,0.03327]
[1754169496190,0.07129969,112850.0,112830.0,0.03006]
[1754169496401,0.07129969,112850.0,112840.0,0.00321]
[1754169496835,0.09795069,112850.0,112840.0,0.00321]
[1754169497459,0.09795069,112850.0,112840.0,0.00521]
[1754169497673,0.09795069,112850.0,112840.0,0.00621]
[1754169498230,0.09795069,112850.0,112840.0,0.00617]
[1754169500699,0.06535069,112850.0,112840.0,0.03833]
[1754169500918,0.03869969,112850.0,112840.0,0.03833]
[1754169502836,0.03872251,112850.0,112840.0,0.03833]
[1754169504143,0.02484924,112850.0,112840.0,0.03833]
[1754169504799,0.00828308,112850.0,112840.0,0.03833]
[1754169505452,0.00828308,112850.0,112840.0,0.17709]
[1754169505668,0.00828308,112850.0,112840.0,0.19502057]
[1754169506110,0.00828308,112850.0,112840.0,0.05626057]
[1754169506327,0.00828308,112850.0,112840.0,0.26584284]
[1754169512413,0.00828308,112850.0,112840.0,0.26484284]
[1754169512819,0.00828308,112850.0,112840.0,0.26784284]
[1754169513046,0.00828308,112850.0,112840.0,0.12896284]
[1754169513267,0.00828308,112850.0,112840.0,0.26768284]
[1754169513442,0.00828308,112850.0,112840.0,0.29445112]
[1754169513864,0.30294796,112880.0,112840.0,0.29445112]
[1754169514073,0.01387145,112870.0,112840.0,0.29445112]
[1754169514279,0.3547951,112880.0,112840.0,0.29445112]
[1754169514488,0.3814421,112880.0,112840.0,0.29445112]
[1754169514664,0.40055658,112880.0,112840.0,0.29445112]
[1754169514880,0.48632263,112880.0,112840.0,0.29231112]
[1754169515085,0.05839046,112870.0,112840.0,0.17052828]
[1754169515242,4.497944,112860.0,112840.0,0.005]
[1754169515444,0.07537675,112860.0,112840.0,0.002]
[1754169515696,0.34971,112850.0,112830.0,0.17243]
[1754169515910,0.39295471,112850.0,112830.0,0.03367]
[1754169516331,0.35659371,112850.0,112820.0,0.03407]
[1754169516548,0.00971,112840.0,112820.0,0.12784331]
[1754169516758,0.00971,112840.0,112820.0,0.13916]
[1754169517185,0.02358425,112840.0,112820.0,0.17283]
[1754169517399,0.04017796,112840.0,112820.0,0.17283]
[1754169517817,0.04017796,112840.0,112820.0,0.17287781]
[1754169518746,0.04017796,112840.0,112820.0,0.17387781]
[1754169518957,0.04017796,112840.0,112820.0,0.17587781]
[1754169519552,0.04017796,112840.0,112820.0,0.17287781]
[1754169519817,0.03046796,112840.0,112820.0,0.19189906]
[1754169520043,0.03046796,112840.0,112830.0,0.03581]
[1754169520992,0.20656875,112850.0,112830.0,0.03581]
[1754169521207,0.26173056,112850.0,112830.0,0.03581]
[1754169521406,0.0138739,112840.0,112830.0,0.03273]
[1754169521537,0.0138739,112840.0,112830.0,0.05192591]
[1754169521937,0.0138739,112840.0,112830.0,0.05500591]
[1754169524058,0.026652,112850.0,112830.0,0.05500591]
[1754169524260,0.026652,112850.0,112840.0,0.03367]
[1754169524432,4.497944,112850.0,112840.0,0.03581]
[1754169524638,0.34,112850.0,112840.0,0.04131059]
[1754169525156,4.498944,112850.0,112840.0,0.04131059]
[1754169525360,0.002,112850.0,112840.0,0.04131059]
[1754169525563,0.502,112850.0,112840.0,0.04131059]
[1754169525772,0.5103021,112850.0,112840.0,0.04131059]
[1754169525973,0.0093021,112850.0,112840.0,0.04131059]
[1754169526477,0.5093021,112850.0,112840.0,0.04131059]
[1754169526951,0.0093021,112850.0,112840.0,0.04131059]
[1754169528277,0.02317485,112850.0,112840.0,0.04131059]
[1754169529192,4.497944,112860.0,112840.0,0.04131059]
[1754169529459,0.49178897,112870.0,112850.0,0.03367]
[1754169529649,0.54616405,112870.0,112850.0,0.03367]
[1754169530200,0.5270424,112870.0,112850.0,0.03367]
[1754169530400,0.341,112860.0,112850.0,0.03367]
[1754169531030,0.341,112860.0,112850.0,0.03581]
[1754169532049,0.34,112860.0,112850.0,0.03581]
[1754169532454,0.341,112860.0,112850.0,0.03581]
[1754169532611,0.342,112860.0,112850.0,0.03581]
[1754169533174,0.35860394,112860.0,112850.0,0.03581]
[1754169534224,0.37247586,112860.0,112850.0,0.03581]
[1754169534682,0.3724756,112860.0,112850.0,0.03581]
[1754169536534,0.3724756,112860.0,112850.0,0.03367]
[1754169536763,0.3724756,112860.0,112850.0,0.00308]
[1754169537259,0.3880056,112860.0,112840.0,0.04067059]
[1754169537462,0.3880056,112860.0,112840.0,0.00847059]
[1754169537665,0.38800878,112860.0,112840.0,0.04067059]
[1754169538296,0.38600878,112860.0,112840.0,0.04067059]
[1754169538475,0.38700878,112860.0,112840.0,0.04067059]
[1754169538710,0.38800878,112860.0,112840.0,0.04067059]
[1754169539968,0.38801187,112860.0,112840.0,0.04067059]
[1754169540393,0.37248187,112860.0,112850.0,0.03729]
[1754169540630,0.03248269,112860.0,112850.0,0.03729]
[1754169540841,0.35587192,112860.0,112850.0,0.13906518]
[1754169541056,0.002,112860.0,112850.0,0.13906518]
[1754169541493,0.00930451,112860.0,112850.0,0.13906518]
[1754169542365,0.01030451,112860.0,112850.0,0.13906518]
[1754169542590,0.002,112860.0,112850.0,0.13906518]
[1754169542816,0.002,112860.0,112850.0,0.05043234]
[1754169543027,0.01030534,112860.0,112850.0,0.03729]
[1754169543474,0.01030553,112860.0,112850.0,0.03729]
[1754169545400,0.002,112860.0,112850.0,0.03729]
[1754169545838,0.01030487,112860.0,112850.0,0.03729]
[1754169547366,0.02417602,112860.0,112850.0,0.03729]
[1754169553717,0.02417602,112860.0,112840.0,0.03770059]
[1754169553965,0.03970602,112860.0,112840.0,0.04067059]
[1754169554172,0.02417949,112860.0,112840.0,0.03770059]
[1754169554401,0.02417949,112860.0,112850.0,0.00297]
[1754169554616,0.02317949,112860.0,112850.0,0.00297]
[1754169554835,0.02317949,112860.0,112850.0,0.03517]
[1754169555047,0.02417949,112860.0,112850.0,0.03517]
[1754169555482,0.02217949,112860.0,112850.0,0.03517]
[1754169555704,0.02317949,112860.0,112850.0,0.03517]
[1754169556137,0.05533169,112860.0,112840.0,0.04067059]
[1754169556560,0.03980169,112860.0,112840.0,0.04067059]
[1754169556771,0.04080169,112860.0,112840.0,0.03770059]
[1754169556995,0.03980477,112860.0,112840.0,0.04067059]
[1754169557206,0.03980477,112860.0,112840.0,0.03517]
[1754169557427,0.03980477,112860.0,112850.0,0.00297]
[1754169557632,0.04080477,112860.0,112850.0,0.03517]
[1754169558096,0.03980477,112860.0,112850.0,0.03517]
[1754169558451,0.04080477,112860.0,112850.0,0.03517]
[1754169558680,0.03980477,112860.0,112850.0,0.03517]
[1754169558876,0.04080477,112860.0,112850.0,0.03517]
[1754169559322,0.04080477,112860.0,112820.0,0.21034337]
[1754169559533,0.05544477,112860.0,112840.0,0.03517]
[1754169559735,0.04081069,112860.0,112840.0,0.0322]
[1754169559966,0.04081069,112860.0,112850.0,0.00297]
[1754169560169,0.03981069,112860.0,112850.0,0.00297]
[1754169560371,0.03881069,112860.0,112850.0,0.03517]
[1754169560606,0.04081069,112860.0,112850.0,0.03517]
[1754169560796,0.04081069,112860.0,112850.0,0.03729]
[1754169560797,0.03981069,112860.0,112850.0,0.03729]
[1754169561000,0.36418541,112860.0,112850.0,0.04814056]
[1754169561138,0.36318541,112860.0,112850.0,0.04814056]
[1754169561550,0.38081407,112860.0,112850.0,0.04814056]
[1754169562309,0.36418541,112860.0,112850.0,0.04814056]
[1754169563437,0.36418541,112860.0,112850.0,0.03729]
[1754169563913,0.38081512,112860.0,112850.0,0.03729]
[1754169565626,0.38081655,112860.0,112850.0,0.03729]
[1754169567850,0.51949655,112860.0,112850.0,0.03729]
[1754169571903,0.02418684,112860.0,112850.0,0.03729]
[1754169572165,0.02418684,112860.0,112850.0,0.04814056]
[1754169573803,0.02418684,112860.0,112850.0,0.03729]
[1754169579338,0.37415356,112880.0,112850.0,0.03729]
[1754169579553,0.4258421,112880.0,112850.0,0.03729]
[1754169579754,0.01387116,112870.0,112850.0,0.03729]
[1754169579976,0.03050254,112870.0,112850.0,0.03729]
[1754169580204,0.03050254,112870.0,112850.0,0.054883]
[1754169581114,0.03050254,112870.0,112850.0,0.057293]
[1754169581593,0.06575597,112870.0,112840.0,0.00318]
[1754169581825,0.1386,112860.0,112840.0,0.03779]
[1754169582059,0.65523138,112860.0,112840.0,0.03779]
[1754169582760,0.49523138,112860.0,112850.0,0.00318]
[1754169582970,0.35663138,112860.0,112850.0,0.03992]
[1754169586590,0.35763138,112860.0,112850.0,0.03992]
[1754169587240,0.35763138,112860.0,112850.0,0.03779]
[1754169587689,0.35763138,112860.0,112840.0,0.03779]
[1754169587888,0.35763138,112860.0,112850.0,0.03461]
[1754169588546,0.38428138,112860.0,112850.0,0.03779]
[1754169588743,0.38328138,112860.0,112850.0,0.03779]
[1754169589167,0.38428138,112860.0,112850.0,0.03779]
[1754169589552,0.38328138,112860.0,112850.0,0.03779]
[1754169589962,0.38428138,112860.0,112850.0,0.03779]
[1754169591367,0.39259641,112860.0,112850.0,0.03779]
[1754169592293,0.34,112850.0,112840.0,0.02650228]
[1754169592514,0.34,112850.0,112820.0,0.09443118]
[1754169592515,0.34831503,112850.0,112820.0,0.02321562]
[1754169592730,0.5393872,112850.0,112830.0,0.03779]
[1754169592935,0.5532608,112850.0,112830.0,0.03779]
[1754169594010,0.5393872,112850.0,112830.0,0.03779]
[1754169595079,0.5393872,112850.0,112830.0,0.03879]
[1754169595754,0.5398972,112850.0,112830.0,0.03879]
[1754169596818,0.5665502,112850.0,112830.0,0.03879]
[1754169597270,0.58042372,112850.0,112830.0,0.03879]
[1754169598321,0.58042372,112850.0,112830.0,0.03561]
[1754169598935,0.58042372,112850.0,112830.0,0.03886]
[1754169600041,0.58040625,112850.0,112830.0,0.03886]
[1754169600706,0.03603866,112840.0,112830.0,0.001]
[1754169600957,0.04486369,112840.0,112830.0,0.001]
[1754169601180,0.04435369,112840.0,112830.0,0.03423]
[1754169601400,0.04435369,112840.0,112830.0,0.03748]
[1754169601864,0.04434365,112840.0,112830.0,0.03648]
[1754169602092,0.04434365,112840.0,112830.0,0.03748]
[1754169602563,0.07099965,112840.0,112830.0,0.03748]
[1754169603202,0.07150965,112840.0,112830.0,0.00096]
[1754169603620,0.07099965,112840.0,112830.0,0.00096]
[1754169604894,0.08760882,112840.0,112830.0,0.00096]
[1754169605782,0.08860882,112840.0,112830.0,0.00096]
[1754169605990,0.42911882,112840.0,112830.0,0.00096]
[1754169606226,0.42911882,112840.0,112820.0,0.00044781]
[1754169606468,0.13856,112830.0,112820.0,0.03692781]
[1754169606698,0.14686499,112830.0,112820.0,0.03692781]
[1754169607358,0.14686499,112830.0,112820.0,0.03900781]
[1754169607577,0.14686401,112830.0,112820.0,0.03900781]
[1754169608024,0.14686401,112830.0,112820.0,0.04464206]
[1754169608866,0.14686401,112830.0,112820.0,0.04564206]
[1754169609093,0.16073938,112830.0,112820.0,0.04564206]
[1754169609510,0.15467938,112830.0,112820.0,0.04564206]
[1754169610806,0.18133738,112830.0,112820.0,0.04564206]
[1754169611013,0.20109971,112830.0,112820.0,0.04564206]
[1754169612969,0.2177099,112830.0,112820.0,0.04564206]
[1754169614831,0.2177099,112830.0,112820.0,0.04000781]
[1754169615937,0.20109971,112830.0,112820.0,0.04000781]
[1754169617259,0.21771006,112830.0,112820.0,0.04000781]
[1754169618363,0.59433782,112830.0,112820.0,0.001]
[1754169618602,0.61019794,112830.0,112820.0,0.001]
[1754169618817,0.58662245,112830.0,112820.0,0.001]
[1754169619036,0.6452847,112830.0,112820.0,0.001]
[1754169619250,0.66273372,112830.0,112820.0,0.001]
[1754169619516,5.16067772,112830.0,112820.0,0.001]
[1754169619730,0.34,112820.0,112810.0,0.0173347]
[1754169619958,0.3853246,112820.0,112810.0,0.01741935]
[1754169620392,0.40194035,112820.0,112810.0,0.01741935]
[1754169620612,0.41581702,112820.0,112810.0,0.01741935]
[1754169620833,0.41581702,112820.0,112810.0,0.05064935]
[1754169621266,0.41581702,112820.0,112810.0,0.05164935]
[1754169622767,0.41581702,112820.0,112810.0,0.01841935]
[1754169622975,0.48351788,112820.0,112810.0,0.01841935]
[1754169623177,5.0140827,112820.0,112810.0,0.01841935]
[1754169623431,5.0332272,112820.0,112810.0,0.01841935]
[1754169623863,4.96552634,112820.0,112810.0,0.01841935]
[1754169624064,4.95164967,112820.0,112810.0,0.01741935]
[1754169624956,4.95265354,112820.0,112810.0,0.01741935]
[1754169626278,4.98398041,112820.0,112810.0,0.01741935]
[1754169627588,0.14603641,112820.0,112790.0,0.03649]
[1754169627800,0.51593348,112810.0,112800.0,0.03298]
[1754169628015,0.54085711,112810.0,112800.0,0.03609]
[1754169628436,0.68289641,112810.0,112800.0,0.03821]
[1754169629729,0.70956141,112810.0,112800.0,0.03821]
[1754169631474,0.70956141,112810.0,112800.0,0.03921]
[1754169632325,0.57104141,112810.0,112800.0,0.03921]
[1754169632530,0.70956141,112810.0,112800.0,0.03921]
[1754169633366,0.70956141,112810.0,112800.0,0.03917]
[1754169633578,0.19362113,112810.0,112800.0,0.03917]
[1754169633801,0.33214113,112810.0,112800.0,0.03917]
[1754169634023,0.19362113,112810.0,112800.0,0.03917]
[1754169634237,0.50695613,112810.0,112800.0,0.03917]
[1754169636948,0.52083336,112810.0,112800.0,0.03917]
[1754169639143,0.52083238,112810.0,112800.0,0.03917]
[1754169641449,0.54749138,112810.0,112800.0,0.03917]
[1754169642059,0.52257553,112810.0,112800.0,0.03917]
[1754169642199,0.54749809,112810.0,112800.0,0.03917]
[1754169643020,0.54749809,112810.0,112800.0,0.03705]
[1754169643630,0.54749809,112810.0,112800.0,0.03917]
[1754169646118,0.34416967,112810.0,112800.0,0.03917]
[1754169646626,0.48264967,112810.0,112800.0,0.03917]
[1754169648729,0.34416967,112810.0,112800.0,0.03917]
[1754169650249,0.31924711,112810.0,112800.0,0.03917]
[1754169650672,0.35387723,112810.0,112800.0,0.03917]
[1754169651557,0.35387723,112810.0,112800.0,0.12780284]
[1754169651765,0.01387723,112810.0,112800.0,0.14067101]
[1754169651972,0.04641733,112830.0,112800.0,0.14067101]
[1754169652314,0.05857866,112830.0,112810.0,0.12693895]
[1754169652492,0.39857866,112830.0,112820.0,0.03821]
[1754169652698,0.05857866,112830.0,112820.0,0.12684284]
[1754169653079,0.39857866,112830.0,112820.0,0.12684284]
[1754169653547,0.39856753,112830.0,112820.0,0.12684284]
[1754169653900,0.38469182,112830.0,112820.0,0.12684284]
[1754169654147,0.38469182,112830.0,112820.0,0.14417801]
[1754169655245,0.36807216,112830.0,112820.0,0.14417801]
[1754169657148,0.35976233,112830.0,112820.0,0.14417801]
[1754169658255,0.37363683,112830.0,112820.0,0.14417801]
[1754169662439,0.13298445,112840.0,112820.0,0.14417801]
[1754169662685,0.13298445,112840.0,112830.0,0.12653856]
[1754169662894,0.13298445,112840.0,112830.0,0.14324793]
[1754169663060,0.13298445,112840.0,112830.0,0.28168793]
[1754169663402,0.13298445,112840.0,112830.0,0.27947221]
[1754169663732,0.13298445,112840.0,112830.0,0.14103221]
[1754169663932,0.13298445,112840.0,112830.0,0.28168793]
[1754169664159,0.13298445,112840.0,112830.0,0.27947221]
[1754169664545,0.15044164,112840.0,112830.0,0.27947221]
[1754169665268,0.14427,112860.0,112830.0,0.28047221]
[1754169665468,0.16915303,112860.0,112840.0,0.03569]
[1754169665676,0.16915303,112860.0,112840.0,0.15237006]
[1754169666600,0.17115303,112860.0,112840.0,0.15237006]
[1754169666856,0.16915303,112860.0,112840.0,0.15237006]
[1754169667383,0.17115303,112860.0,112840.0,0.15237006]
[1754169667597,0.1884989,112860.0,112840.0,0.15237006]
[1754169668005,0.1826689,112860.0,112840.0,0.15237006]
[1754169668214,0.20237091,112860.0,112840.0,0.15237006]
[1754169668424,0.20237091,112860.0,112840.0,0.12432284]
[1754169669040,0.20437091,112860.0,112840.0,0.12432284]
[1754169669320,0.20433091,112860.0,112840.0,0.12432284]